[Event "Late-Titled-Tuesday-Blitz-April-16-2024"]
[Site "Chess.com"]
[Date "2024.04.16"]
[Round "8"]
[White "Bryanl106"]
[Black "MFatigue"]
[Result "1-0"]
[WhiteElo "2711"]
[BlackElo "2550"]
[TimeControl "180+1"]
[EndTime "15:24:29 PDT"]
[Termination "Bryanl106 won by resignation"]

1. e4 {[%clk 0:03:00.9]} 1... e6 {[%clk 0:03:00.4]} 2. d4 {[%clk 0:03:00.7]}
2... d5 {[%clk 0:03:01]} 3. Nd2 {[%clk 0:03:01.1]} 3... Nf6 {[%clk 0:03:01.2]}
4. e5 {[%clk 0:03:01.4]} 4... Nfd7 {[%clk 0:03:01.9]} 5. f4 {[%clk 0:03:02.2]}
5... c5 {[%clk 0:03:02.8]} 6. c3 {[%clk 0:03:03]} 6... Nc6 {[%clk 0:03:03.5]} 7.
Ndf3 {[%clk 0:03:03.4]} 7... Qb6 {[%clk 0:03:04.2]} 8. a3 {[%clk 0:03:04]} 8...
a5 {[%clk 0:03:03.8]} 9. b3 {[%clk 0:03:03.6]} 9... Be7 {[%clk 0:03:03.2]} 10.
h4 {[%clk 0:03:04.1]} 10... Qa7 {[%clk 0:03:03.1]} 11. h5 {[%clk 0:02:50.8]}
11... b6 {[%clk 0:03:03.4]} 12. Bb5 {[%clk 0:02:48.8]} 12... Qc7 {[%clk
0:03:03.3]} 13. h6 {[%clk 0:02:47.6]} 13... g6 {[%clk 0:03:02.9]} 14. Ne2 {[%clk
0:02:48]} 14... Ba6 {[%clk 0:03:02.3]} 15. a4 {[%clk 0:02:45.9]} 15... Bxb5
{[%clk 0:02:49.9]} 16. axb5 {[%clk 0:02:46.8]} 16... Na7 {[%clk 0:02:50.5]} 17.
Qd3 {[%clk 0:02:45.1]} 17... c4 {[%clk 0:02:49.7]} 18. bxc4 {[%clk 0:02:46]}
18... dxc4 {[%clk 0:02:50.4]} 19. Qb1 {[%clk 0:02:44]} 19... Qb7 {[%clk
0:02:45.2]} 20. Ba3 {[%clk 0:02:29.6]} 20... Bxa3 {[%clk 0:02:34.6]} 21. Rxa3
{[%clk 0:02:30.5]} 21... Qd5 {[%clk 0:02:35]} 22. Kf2 {[%clk 0:02:29.2]} 22...
Nxb5 {[%clk 0:02:33.7]} 23. Ra2 {[%clk 0:02:27.9]} 23... Nc7 {[%clk 0:02:25.2]}
24. g4 {[%clk 0:02:24.7]} 24... b5 {[%clk 0:02:08.2]} 25. f5 {[%clk 0:02:23.2]}
25... Qc6 {[%clk 0:01:35.1]} 26. fxg6 {[%clk 0:02:11.8]} 26... fxg6 {[%clk
0:01:33.7]} 27. Nf4 {[%clk 0:02:10.8]} 27... O-O {[%clk 0:01:32.6]} 28. Qc1
{[%clk 0:01:56.9]} 28... Qe4 {[%clk 0:01:17.5]} 29. Kg3 {[%clk 0:01:50]} 29...
Nd5 {[%clk 0:01:17.6]} 30. Re1 {[%clk 0:01:47.7]} 30... Qxf4+ {[%clk 0:01:15.4]}
31. Qxf4 {[%clk 0:01:47.3]} 31... Rxf4 {[%clk 0:01:15.3]} 32. Ng5 {[%clk
0:01:47.8]} 32... Nf8 {[%clk 0:01:07.3]} 33. Rea1 {[%clk 0:01:47.2]} 33... b4
{[%clk 0:00:44.7]} 34. cxb4 {[%clk 0:01:44.8]} 34... Rxd4 {[%clk 0:00:44.6]} 35.
Rxa5 {[%clk 0:01:44.1]} 35... Rxa5 {[%clk 0:00:40.7]} 36. Rxa5 {[%clk 0:01:45]}
36... Nxb4 {[%clk 0:00:40.5]} 37. Ra8 {[%clk 0:01:39.5]} 37... Rd3+ {[%clk
0:00:21.4]} 38. Kg2 {[%clk 0:01:36.9]} 38... Rd2+ {[%clk 0:00:19.9]} 39. Kg3
{[%clk 0:01:37.1]} 39... Rd3+ {[%clk 0:00:19.8]} 40. Kh4 {[%clk 0:01:27.2]}
40... Nd5 {[%clk 0:00:14.6]} 41. Ra7 {[%clk 0:01:20]} 41... Nd7 {[%clk
0:00:05.3]} 42. Rxd7 {[%clk 0:01:19.2]} 42... Nf4 {[%clk 0:00:05]} 43. Rg7+
{[%clk 0:01:17.3]} 43... Kf8 {[%clk 0:00:05.1]} 44. Nxh7+ {[%clk 0:01:17.7]}
44... Ke8 {[%clk 0:00:05.5]} 45. Nf6+ {[%clk 0:01:17.8]} 45... Kd8 {[%clk
0:00:05.5]} 46. Kg5 {[%clk 0:01:16.6]} 46... Nh3+ {[%clk 0:00:03.9]} 47. Kxg6
{[%clk 0:01:16.4]} 47... Nf4+ {[%clk 0:00:04.4]} 48. Kf7 {[%clk 0:01:16.3]}
48... Rh3 {[%clk 0:00:04]} 49. h7 {[%clk 0:01:13.3]} 49... c3 {[%clk 0:00:04.3]}
50. Nh5 {[%clk 0:01:13.7]} 50... Nxh5 {[%clk 0:00:02.3]} 51. h8=R+ {[%clk
0:01:13.2]} 51... Kc7 {[%clk 0:00:03]} 52. gxh5 {[%clk 0:01:11.3]} 52... c2
{[%clk 0:00:02.6]} 53. Rg1 {[%clk 0:01:11.2]} 53... Rf3+ {[%clk 0:00:03]} 54.
Kxe6 {[%clk 0:01:11.2]} 1-0

[Event "Late-Titled-Tuesday-Blitz-April-16-2024"]
[Site "Chess.com"]
[Date "2024.04.16"]
[Round "8"]
[White "KaydenTroffChess"]
[Black "SaqoChess_Twitch"]
[Result "0-1"]
[WhiteElo "2852"]
[BlackElo "2704"]
[TimeControl "180+1"]
[EndTime "15:24:31 PDT"]
[Termination "SaqoChess_Twitch won by resignation"]

1. d4 {[%clk 0:03:00.9]} 1... d5 {[%clk 0:03:00]} 2. Nf3 {[%clk 0:03:00.7]} 2...
Nf6 {[%clk 0:02:58.8]} 3. Bf4 {[%clk 0:03:00.4]} 3... e6 {[%clk 0:02:59.2]} 4.
e3 {[%clk 0:03:00.7]} 4... Bd6 {[%clk 0:02:58.3]} 5. Ne5 {[%clk 0:03:01]} 5...
c5 {[%clk 0:02:57.7]} 6. Bb5+ {[%clk 0:03:00.3]} 6... Kf8 {[%clk 0:02:54.9]} 7.
O-O {[%clk 0:02:59.6]} 7... Qc7 {[%clk 0:02:53.9]} 8. Nd2 {[%clk 0:02:52.8]}
8... a6 {[%clk 0:02:51.9]} 9. Be2 {[%clk 0:02:51.1]} 9... Nbd7 {[%clk
0:02:51.4]} 10. Nxd7+ {[%clk 0:02:48]} 10... Bxd7 {[%clk 0:02:50.9]} 11. Bg5
{[%clk 0:02:48.6]} 11... cxd4 {[%clk 0:02:47]} 12. Nf3 {[%clk 0:02:11.1]} 12...
dxe3 {[%clk 0:02:41.9]} 13. Bxe3 {[%clk 0:02:08.5]} 13... Rc8 {[%clk 0:02:38.8]}
14. c3 {[%clk 0:02:08.4]} 14... h6 {[%clk 0:02:37.3]} 15. h3 {[%clk 0:02:05.5]}
15... Bc5 {[%clk 0:02:36.8]} 16. Nd4 {[%clk 0:01:58.2]} 16... e5 {[%clk
0:02:36.6]} 17. Nc2 {[%clk 0:01:58.4]} 17... Bxe3 {[%clk 0:02:36.3]} 18. Nxe3
{[%clk 0:01:59.3]} 18... Be6 {[%clk 0:02:36.1]} 19. Qa4 {[%clk 0:01:41.6]} 19...
g6 {[%clk 0:02:33.1]} 20. Rad1 {[%clk 0:01:39.2]} 20... Kg7 {[%clk 0:02:32.8]}
21. Kh1 {[%clk 0:01:35]} 21... Rhd8 {[%clk 0:02:32.1]} 22. Qh4 {[%clk 0:01:19]}
22... Qb6 {[%clk 0:02:13.8]} 23. Qg3 {[%clk 0:00:42.5]} 23... Qxb2 {[%clk
0:02:07.1]} 24. Qxe5 {[%clk 0:00:41.7]} 24... Qxc3 {[%clk 0:01:54.3]} 25. Rd4
{[%clk 0:00:27.5]} 25... Re8 {[%clk 0:01:54.6]} 26. Qf4 {[%clk 0:00:20.5]} 26...
g5 {[%clk 0:01:44.5]} 27. Qe5 {[%clk 0:00:20.7]} 27... Bd7 {[%clk 0:01:37.7]}
28. Qxf6+ {[%clk 0:00:19.8]} 28... Kxf6 {[%clk 0:01:33.2]} 29. Nxd5+ {[%clk
0:00:20.2]} 29... Ke5 {[%clk 0:01:30.9]} 30. Rdd1 {[%clk 0:00:10.6]} 30... Qa5
{[%clk 0:01:25.6]} 31. Bh5 {[%clk 0:00:09.7]} 31... Bb5 {[%clk 0:01:16]} 32.
Rfe1+ {[%clk 0:00:06.5]} 32... Qxe1+ {[%clk 0:01:15.7]} 33. Rxe1+ {[%clk
0:00:06.7]} 33... Kxd5 {[%clk 0:01:15.4]} 34. Bxf7+ {[%clk 0:00:07]} 34... Kd6
{[%clk 0:01:15.5]} 35. Bxe8 {[%clk 0:00:06.2]} 35... Rxe8 {[%clk 0:01:16.4]} 36.
Rd1+ {[%clk 0:00:06.7]} 36... Kc7 {[%clk 0:01:15.2]} 37. a3 {[%clk 0:00:07.3]}
37... Re2 {[%clk 0:01:13.9]} 38. Kg1 {[%clk 0:00:07.4]} 38... Bc6 {[%clk
0:01:13.2]} 39. Rd3 {[%clk 0:00:05.4]} 39... b5 {[%clk 0:01:13.3]} 40. Rc3
{[%clk 0:00:03]} 40... a5 {[%clk 0:01:13.3]} 41. h4 {[%clk 0:00:03.1]} 41... b4
{[%clk 0:01:09.3]} 42. axb4 {[%clk 0:00:02.9]} 42... axb4 {[%clk 0:01:10.2]} 43.
Rc4 {[%clk 0:00:03.5]} 43... b3 {[%clk 0:01:10.2]} 44. Rb4 {[%clk 0:00:03.8]}
44... b2 {[%clk 0:01:10.6]} 45. Kh2 {[%clk 0:00:04.3]} 45... Be4 {[%clk
0:01:10.5]} 46. hxg5 {[%clk 0:00:03.6]} 46... hxg5 {[%clk 0:01:10.5]} 47. Kg3
{[%clk 0:00:03.8]} 47... b1=Q {[%clk 0:01:10.7]} 48. Rxb1 {[%clk 0:00:04.1]}
48... Bxb1 {[%clk 0:01:11.6]} 49. f3 {[%clk 0:00:04.3]} 49... Kd6 {[%clk
0:01:11.2]} 50. Kh3 {[%clk 0:00:04.3]} 50... Ke5 {[%clk 0:01:11.4]} 51. g3
{[%clk 0:00:04.4]} 51... Kd4 {[%clk 0:01:11.4]} 52. Kg4 {[%clk 0:00:04.7]} 52...
Ke3 {[%clk 0:01:11.6]} 53. Kxg5 {[%clk 0:00:03.5]} 53... Kxf3 {[%clk 0:01:11.7]}
54. g4 {[%clk 0:00:04.2]} 54... Rg2 {[%clk 0:01:11.8]} 0-1

[Event "Late-Titled-Tuesday-Blitz-April-16-2024"]
[Site "Chess.com"]
[Date "2024.04.16"]
[Round "8"]
[White "Chess_Star1234"]
[Black "Smiechu"]
[Result "1-0"]
[WhiteElo "2521"]
[BlackElo "2402"]
[TimeControl "180+1"]
[EndTime "15:24:34 PDT"]
[Termination "Chess_Star1234 won on time"]

1. d4 {[%clk 0:01:48.4]} 1... Nf6 {[%clk 0:02:57.1]} 2. c4 {[%clk 0:01:48.7]}
2... c5 {[%clk 0:02:57.2]} 3. d5 {[%clk 0:01:48.9]} 3... e6 {[%clk 0:02:57.8]}
4. Nc3 {[%clk 0:01:49.2]} 4... exd5 {[%clk 0:02:58.7]} 5. cxd5 {[%clk
0:01:50.1]} 5... d6 {[%clk 0:02:58.9]} 6. e4 {[%clk 0:01:50.7]} 6... g6 {[%clk
0:02:59.4]} 7. f3 {[%clk 0:01:51.4]} 7... Bg7 {[%clk 0:02:59.2]} 8. Nge2 {[%clk
0:01:52.1]} 8... O-O {[%clk 0:02:59.2]} 9. Ng3 {[%clk 0:01:52.8]} 9... Re8
{[%clk 0:02:58.6]} 10. Be2 {[%clk 0:01:53.4]} 10... a6 {[%clk 0:02:58.3]} 11. a4
{[%clk 0:01:53.5]} 11... Nbd7 {[%clk 0:02:58.3]} 12. O-O {[%clk 0:01:53.8]}
12... Rb8 {[%clk 0:02:54.1]} 13. Be3 {[%clk 0:01:53.6]} 13... Ne5 {[%clk
0:02:51.9]} 14. h3 {[%clk 0:01:53.8]} 14... c4 {[%clk 0:02:08.5]} 15. a5 {[%clk
0:01:50.3]} 15... Nfd7 {[%clk 0:01:57.3]} 16. f4 {[%clk 0:01:34.2]} 16... Nd3
{[%clk 0:01:56.9]} 17. Bxd3 {[%clk 0:01:34.4]} 17... cxd3 {[%clk 0:01:57.8]} 18.
Qxd3 {[%clk 0:01:33.5]} 18... Qh4 {[%clk 0:01:51.8]} 19. Kh2 {[%clk 0:01:24.9]}
19... g5 {[%clk 0:01:40.9]} 20. Nf5 {[%clk 0:01:20.1]} 20... Nc5 {[%clk
0:01:10.9]} 21. Bxc5 {[%clk 0:00:33]} 21... Bxf5 {[%clk 0:01:10.2]} 22. Bf2
{[%clk 0:00:33.4]} 22... Qxf4+ {[%clk 0:01:02.4]} 23. Bg3 {[%clk 0:00:33]} 23...
Bxe4 {[%clk 0:01:00.8]} 24. Qc4 {[%clk 0:00:18.5]} 24... Rbc8 {[%clk 0:00:34.7]}
25. Qb4 {[%clk 0:00:17.5]} 25... Qe3 {[%clk 0:00:08.9]} 26. Rae1 {[%clk
0:00:14.2]} 26... Bxc3 {[%clk 0:00:03.5]} 27. bxc3 {[%clk 0:00:14.5]} 27... Qxc3
{[%clk 0:00:03]} 28. Rxe4 {[%clk 0:00:14]} 1-0

[Event "Late-Titled-Tuesday-Blitz-April-16-2024"]
[Site "Chess.com"]
[Date "2024.04.16"]
[Round "8"]
[White "albayo"]
[Black "picturesquecheck"]
[Result "1-0"]
[WhiteElo "2515"]
[BlackElo "2400"]
[TimeControl "180+1"]
[EndTime "15:24:36 PDT"]
[Termination "albayo won by checkmate"]

1. c4 {[%clk 0:03:00.9]} 1... Nf6 {[%clk 0:02:59.3]} 2. g3 {[%clk 0:02:47.7]}
2... d6 {[%clk 0:03:00.2]} 3. Bg2 {[%clk 0:02:47]} 3... g6 {[%clk 0:03:00.9]} 4.
Nf3 {[%clk 0:02:47.3]} 4... Bg7 {[%clk 0:03:01.8]} 5. O-O {[%clk 0:02:47.5]}
5... O-O {[%clk 0:03:02.5]} 6. Nc3 {[%clk 0:02:47.3]} 6... Nc6 {[%clk 0:03:03]}
7. d3 {[%clk 0:02:47.4]} 7... e5 {[%clk 0:03:03]} 8. Rb1 {[%clk 0:02:35.3]} 8...
Re8 {[%clk 0:03:01.6]} 9. b4 {[%clk 0:02:32.9]} 9... Rb8 {[%clk 0:03:00.6]} 10.
b5 {[%clk 0:02:30.4]} 10... Ne7 {[%clk 0:03:00.2]} 11. Qa4 {[%clk 0:02:26]}
11... a6 {[%clk 0:02:47.3]} 12. bxa6 {[%clk 0:02:22.1]} 12... Ra8 {[%clk
0:02:45.6]} 13. axb7 {[%clk 0:02:18]} 13... Bxb7 {[%clk 0:02:32.8]} 14. Qc2
{[%clk 0:02:16.4]} 14... Bc6 {[%clk 0:02:30.2]} 15. Bg5 {[%clk 0:02:06.4]} 15...
h6 {[%clk 0:02:28.2]} 16. Bxf6 {[%clk 0:02:06.3]} 16... Bxf6 {[%clk 0:02:29.1]}
17. Nd2 {[%clk 0:02:06.5]} 17... Bxg2 {[%clk 0:02:27.4]} 18. Kxg2 {[%clk
0:02:07.4]} 18... Bg7 {[%clk 0:02:27.6]} 19. Nd5 {[%clk 0:02:05.9]} 19... Nxd5
{[%clk 0:02:26.2]} 20. cxd5 {[%clk 0:02:06.8]} 20... Ra7 {[%clk 0:02:25.7]} 21.
e4 {[%clk 0:01:42.9]} 21... f5 {[%clk 0:02:16.4]} 22. a4 {[%clk 0:01:40.7]}
22... Qa8 {[%clk 0:02:16]} 23. Ra1 {[%clk 0:01:40.1]} 23... f4 {[%clk
0:02:12.5]} 24. Rfc1 {[%clk 0:01:37.7]} 24... h5 {[%clk 0:02:05.3]} 25. Qc6
{[%clk 0:01:35.2]} 25... Qc8 {[%clk 0:01:50.9]} 26. a5 {[%clk 0:01:33]} 26...
Bh6 {[%clk 0:01:48.8]} 27. Rc2 {[%clk 0:01:17.8]} 27... Rf8 {[%clk 0:01:46]} 28.
Nf3 {[%clk 0:01:17.2]} 28... fxg3 {[%clk 0:01:29.3]} 29. fxg3 {[%clk 0:01:15.7]}
29... Qg4 {[%clk 0:01:27.9]} 30. Rf2 {[%clk 0:01:14.4]} 30... Be3 {[%clk
0:01:25.5]} 31. Rff1 {[%clk 0:01:14.3]} 31... Bc5 {[%clk 0:01:22.2]} 32. a6
{[%clk 0:01:08.2]} 32... h4 {[%clk 0:01:10.7]} 33. Nxh4 {[%clk 0:01:04.5]} 33...
Qe2+ {[%clk 0:01:08.2]} 34. Kh3 {[%clk 0:01:02.7]} 34... Rxf1 {[%clk 0:00:56]}
35. Qe8+ {[%clk 0:01:02.1]} 35... Kg7 {[%clk 0:00:39.4]} 36. Qxg6+ {[%clk
0:00:51.7]} 36... Kf8 {[%clk 0:00:39.5]} 37. Qh7 {[%clk 0:00:19.1]} 37... Rf7
{[%clk 0:00:28.3]} 38. Ng6+ {[%clk 0:00:18.9]} 38... Ke8 {[%clk 0:00:27.5]} 39.
Qg8+ {[%clk 0:00:19.2]} 39... Kd7 {[%clk 0:00:25.7]} 40. Qxf7+ {[%clk
0:00:18.8]} 40... Kd8 {[%clk 0:00:26]} 41. Qe7+ {[%clk 0:00:17.6]} 41... Kc8
{[%clk 0:00:26.4]} 42. Qe8# {[%clk 0:00:18.3]} 1-0

[Event "Late-Titled-Tuesday-Blitz-April-16-2024"]
[Site "Chess.com"]
[Date "2024.04.16"]
[Round "8"]
[White "Jahonas"]
[Black "GMMikhailKazakov"]
[Result "0-1"]
[WhiteElo "2386"]
[BlackElo "2510"]
[TimeControl "180+1"]
[EndTime "15:24:37 PDT"]
[Termination "GMMikhailKazakov won by resignation"]

1. e4 {[%clk 0:03:00.9]} 1... e5 {[%clk 0:02:55.6]} 2. Nf3 {[%clk 0:03:00.8]}
2... Nc6 {[%clk 0:02:55.7]} 3. Bb5 {[%clk 0:03:00.9]} 3... a6 {[%clk 0:02:54.6]}
4. Ba4 {[%clk 0:03:00.9]} 4... Nf6 {[%clk 0:02:54.7]} 5. O-O {[%clk 0:03:00.6]}
5... Be7 {[%clk 0:02:51.8]} 6. Re1 {[%clk 0:03:00.8]} 6... b5 {[%clk 0:02:50.7]}
7. Bb3 {[%clk 0:03:00.5]} 7... d6 {[%clk 0:02:51.1]} 8. h3 {[%clk 0:02:59.7]}
8... O-O {[%clk 0:02:50.5]} 9. c3 {[%clk 0:02:59.6]} 9... Be6 {[%clk 0:02:47.1]}
10. Bc2 {[%clk 0:02:50.6]} 10... h6 {[%clk 0:02:32.9]} 11. d4 {[%clk 0:02:50]}
11... exd4 {[%clk 0:02:30.4]} 12. Nxd4 {[%clk 0:02:50]} 12... Nxd4 {[%clk
0:02:28.6]} 13. cxd4 {[%clk 0:02:49.8]} 13... c5 {[%clk 0:02:06.5]} 14. Nc3
{[%clk 0:02:38.6]} 14... cxd4 {[%clk 0:01:57.7]} 15. Qxd4 {[%clk 0:02:36.3]}
15... Nd7 {[%clk 0:01:56.7]} 16. Nd5 {[%clk 0:02:31.5]} 16... Rc8 {[%clk
0:01:40.3]} 17. Bb3 {[%clk 0:02:22]} 17... Nc5 {[%clk 0:01:33.1]} 18. Bf4 {[%clk
0:01:54.5]} 18... Bg5 {[%clk 0:01:13.4]} 19. Bg3 {[%clk 0:01:45.3]} 19... Bh4
{[%clk 0:01:08.3]} 20. Bxd6 {[%clk 0:01:20.3]} 20... Nxb3 {[%clk 0:00:29.1]} 21.
axb3 {[%clk 0:01:16.5]} 21... Bxd5 {[%clk 0:00:29.2]} 22. Qxd5 {[%clk
0:01:14.9]} 22... Re8 {[%clk 0:00:28.5]} 23. Rad1 {[%clk 0:01:10.2]} 23... Qf6
{[%clk 0:00:25]} 24. g3 {[%clk 0:01:00.9]} 24... Rc2 {[%clk 0:00:20.6]} 25. Qd4
{[%clk 0:00:54.5]} 25... Qxd4 {[%clk 0:00:14.7]} 26. Rxd4 {[%clk 0:00:54.3]}
26... Be7 {[%clk 0:00:13.5]} 27. Bxe7 {[%clk 0:00:52.9]} 27... Rxe7 {[%clk
0:00:14.4]} 28. b4 {[%clk 0:00:37.8]} 28... Rxb2 {[%clk 0:00:13.4]} 29. Re3
{[%clk 0:00:37.6]} 29... Re6 {[%clk 0:00:12.9]} 30. Kg2 {[%clk 0:00:37.1]} 30...
g6 {[%clk 0:00:11.7]} 31. h4 {[%clk 0:00:36.6]} 31... Rc6 {[%clk 0:00:11.6]} 32.
Rd8+ {[%clk 0:00:33]} 32... Kg7 {[%clk 0:00:11.2]} 33. Rd7 {[%clk 0:00:33.3]}
33... Rf6 {[%clk 0:00:11.3]} 34. Rf3 {[%clk 0:00:33.4]} 34... Rxf3 {[%clk
0:00:11]} 35. Kxf3 {[%clk 0:00:33.8]} 35... Rxb4 {[%clk 0:00:11.9]} 36. Ra7
{[%clk 0:00:32.9]} 36... Ra4 {[%clk 0:00:12.2]} 37. Kf4 {[%clk 0:00:32.4]} 37...
b4 {[%clk 0:00:11.1]} 38. Ke5 {[%clk 0:00:32.1]} 38... Ra5+ {[%clk 0:00:10.6]}
39. Kd6 {[%clk 0:00:31.6]} 39... b3 {[%clk 0:00:10.9]} 40. Rb7 {[%clk
0:00:31.3]} 40... Rb5 {[%clk 0:00:11.4]} 0-1

[Event "Late-Titled-Tuesday-Blitz-April-16-2024"]
[Site "Chess.com"]
[Date "2024.04.16"]
[Round "8"]
[White "Hasangatin_Ramil"]
[Black "subham777"]
[Result "1-0"]
[WhiteElo "2649"]
[BlackElo "2532"]
[TimeControl "180+1"]
[EndTime "15:24:43 PDT"]
[Termination "Hasangatin_Ramil won by checkmate"]

1. e4 {[%clk 0:03:00.9]} 1... e6 {[%clk 0:02:59.7]} 2. d3 {[%clk 0:02:57.9]}
2... c5 {[%clk 0:02:59.6]} 3. Nf3 {[%clk 0:02:57.5]} 3... Nc6 {[%clk 0:03:00.1]}
4. g3 {[%clk 0:02:58]} 4... g6 {[%clk 0:03:00.7]} 5. d4 {[%clk 0:02:58.4]} 5...
cxd4 {[%clk 0:02:59.2]} 6. Nxd4 {[%clk 0:02:59.3]} 6... a6 {[%clk 0:02:46.2]} 7.
Bg2 {[%clk 0:02:58.8]} 7... Bg7 {[%clk 0:02:46.2]} 8. Nxc6 {[%clk 0:02:59]} 8...
bxc6 {[%clk 0:02:46.2]} 9. Qd6 {[%clk 0:02:58.9]} 9... Ne7 {[%clk 0:02:41.8]}
10. O-O {[%clk 0:02:57.2]} 10... O-O {[%clk 0:02:37.3]} 11. Rd1 {[%clk
0:02:56.8]} 11... Qb6 {[%clk 0:02:30.8]} 12. Qxe7 {[%clk 0:02:50]} 12... Bxb2
{[%clk 0:02:29.1]} 13. Bxb2 {[%clk 0:02:42.8]} 13... Qxb2 {[%clk 0:02:30]} 14.
Nd2 {[%clk 0:02:30]} 14... Qxc2 {[%clk 0:02:28.2]} 15. e5 {[%clk 0:02:28.3]}
15... a5 {[%clk 0:02:24.1]} 16. Ne4 {[%clk 0:02:27.6]} 16... Ba6 {[%clk
0:02:16.4]} 17. Nf6+ {[%clk 0:02:25.7]} 17... Kg7 {[%clk 0:02:16]} 18. Nxd7
{[%clk 0:02:24.3]} 18... Rfe8 {[%clk 0:02:12]} 19. Qf6+ {[%clk 0:02:22.9]} 19...
Kg8 {[%clk 0:02:12.6]} 20. Rdc1 {[%clk 0:02:18.7]} 20... Qb2 {[%clk 0:02:09.6]}
21. Qg5 {[%clk 0:02:09.2]} 21... Red8 {[%clk 0:01:44.4]} 22. Nf6+ {[%clk
0:02:08.7]} 22... Kg7 {[%clk 0:01:44.6]} 23. Nh5+ {[%clk 0:02:08.1]} 23... Kg8
{[%clk 0:01:44.8]} 24. Rd1 {[%clk 0:01:49.4]} 24... Rd3 {[%clk 0:01:38.3]} 25.
Bf1 {[%clk 0:01:39.6]} 25... Rxd1 {[%clk 0:01:25.7]} 26. Rxd1 {[%clk 0:01:38.9]}
26... h6 {[%clk 0:01:21.1]} 27. Nf6+ {[%clk 0:01:26.4]} 27... Kg7 {[%clk
0:01:11.5]} 28. Qc1 {[%clk 0:01:10.8]} 28... Qxe5 {[%clk 0:01:03.3]} 29. Nd7
{[%clk 0:01:05.5]} 29... Qf5 {[%clk 0:00:53.8]} 30. Qc3+ {[%clk 0:00:57.1]}
30... Kg8 {[%clk 0:00:37.2]} 31. Nf6+ {[%clk 0:00:54]} 31... Kf8 {[%clk
0:00:36.5]} 32. Bxa6 {[%clk 0:00:51]} 32... Rxa6 {[%clk 0:00:27.7]} 33. Rd8+
{[%clk 0:00:49.7]} 33... Ke7 {[%clk 0:00:27.2]} 34. Re8+ {[%clk 0:00:28.1]}
34... Kd6 {[%clk 0:00:26.4]} 35. Qa3+ {[%clk 0:00:21.5]} 35... Ke5 {[%clk
0:00:16.2]} 36. Qc3+ {[%clk 0:00:19.8]} 36... Kd6 {[%clk 0:00:16.1]} 37. Qd4+
{[%clk 0:00:19.6]} 37... Kc7 {[%clk 0:00:12.2]} 38. Qd8+ {[%clk 0:00:17.8]}
38... Kb7 {[%clk 0:00:11.2]} 39. Re7# {[%clk 0:00:18.1]} 1-0

[Event "Late-Titled-Tuesday-Blitz-April-16-2024"]
[Site "Chess.com"]
[Date "2024.04.16"]
[Round "8"]
[White "gmcorrales"]
[Black "AradNazari"]
[Result "0-1"]
[WhiteElo "2923"]
[BlackElo "2733"]
[TimeControl "180+1"]
[EndTime "15:24:45 PDT"]
[Termination "AradNazari won by resignation"]

1. d4 {[%clk 0:03:00.9]} 1... Nf6 {[%clk 0:03:00.3]} 2. c4 {[%clk 0:03:01.1]}
2... g6 {[%clk 0:03:00.7]} 3. Nc3 {[%clk 0:03:01.6]} 3... d5 {[%clk 0:03:00.7]}
4. cxd5 {[%clk 0:03:02.5]} 4... Nxd5 {[%clk 0:03:01.2]} 5. e4 {[%clk 0:03:01.2]}
5... Nxc3 {[%clk 0:03:01.6]} 6. bxc3 {[%clk 0:03:02.1]} 6... Bg7 {[%clk
0:03:01.9]} 7. Bc4 {[%clk 0:03:02.1]} 7... O-O {[%clk 0:03:02.3]} 8. Ne2 {[%clk
0:03:02.3]} 8... c5 {[%clk 0:03:02.9]} 9. O-O {[%clk 0:03:02.8]} 9... Nc6 {[%clk
0:03:02.1]} 10. Be3 {[%clk 0:03:03.4]} 10... Bg4 {[%clk 0:03:02]} 11. f3 {[%clk
0:03:03.8]} 11... Bd7 {[%clk 0:03:02.7]} 12. Qd2 {[%clk 0:02:59.6]} 12... Qa5
{[%clk 0:03:01.7]} 13. d5 {[%clk 0:02:53.3]} 13... Ne5 {[%clk 0:02:44.6]} 14.
Bb3 {[%clk 0:02:53]} 14... Bb5 {[%clk 0:02:45.1]} 15. Rac1 {[%clk 0:02:39.1]}
15... Nc4 {[%clk 0:02:33.3]} 16. Bxc4 {[%clk 0:02:35.9]} 16... Bxc4 {[%clk
0:02:33.5]} 17. Rf2 {[%clk 0:02:29.5]} 17... b6 {[%clk 0:02:28.8]} 18. Nf4
{[%clk 0:02:23.3]} 18... Rad8 {[%clk 0:02:17.7]} 19. h4 {[%clk 0:02:23.1]} 19...
e6 {[%clk 0:02:07.1]} 20. h5 {[%clk 0:02:22.3]} 20... exd5 {[%clk 0:02:07.3]}
21. exd5 {[%clk 0:02:23.2]} 21... Rfe8 {[%clk 0:02:05.2]} 22. d6 {[%clk
0:01:31]} 22... Be5 {[%clk 0:01:51]} 23. d7 {[%clk 0:01:29.4]} 23... Re7 {[%clk
0:01:48.5]} 24. Qc2 {[%clk 0:01:26]} 24... Rdxd7 {[%clk 0:01:38.2]} 25. hxg6
{[%clk 0:01:25.1]} 25... hxg6 {[%clk 0:01:36.2]} 26. Qe4 {[%clk 0:01:10.6]}
26... Qa4 {[%clk 0:01:08.4]} 27. Rd2 {[%clk 0:00:39.5]} 27... Rxd2 {[%clk
0:00:53.9]} 28. Bxd2 {[%clk 0:00:40.4]} 28... Bd4+ {[%clk 0:00:54.3]} 29. cxd4
{[%clk 0:00:36.9]} 29... Rxe4 {[%clk 0:00:54.9]} 30. fxe4 {[%clk 0:00:36.4]}
30... cxd4 {[%clk 0:00:52.5]} 31. Nh3 {[%clk 0:00:31.3]} 31... Qxa2 {[%clk
0:00:51.9]} 32. Bf4 {[%clk 0:00:29]} 32... b5 {[%clk 0:00:49.5]} 33. Ng5 {[%clk
0:00:24.7]} 33... a5 {[%clk 0:00:45.6]} 34. Nf3 {[%clk 0:00:23.8]} 34... Qb2
{[%clk 0:00:43.1]} 35. Kh2 {[%clk 0:00:19.4]} 35... f6 {[%clk 0:00:39.3]} 36.
Kg3 {[%clk 0:00:19.2]} 36... g5 {[%clk 0:00:38.8]} 37. Bd2 {[%clk 0:00:19.5]}
37... a4 {[%clk 0:00:33.2]} 38. Re1 {[%clk 0:00:17.2]} 38... Be6 {[%clk
0:00:29.4]} 39. e5 {[%clk 0:00:17.3]} 39... g4 {[%clk 0:00:29.7]} 40. exf6
{[%clk 0:00:17.8]} 40... gxf3 {[%clk 0:00:29.7]} 41. Rxe6 {[%clk 0:00:17.7]}
41... Qxd2 {[%clk 0:00:29.6]} 42. gxf3 {[%clk 0:00:17.3]} 42... a3 {[%clk
0:00:28.1]} 43. Ra6 {[%clk 0:00:17.1]} 43... a2 {[%clk 0:00:28]} 44. Kg4 {[%clk
0:00:17.7]} 44... b4 {[%clk 0:00:27.2]} 45. Kf5 {[%clk 0:00:18]} 45... Qd3+
{[%clk 0:00:27.2]} 0-1